bitfinex/quotes_BTCUSD_20220201
["timestamp","ask_amount","ask_price","bid_price","bid_amount"]
[1643695053521,0.04360881,38577.0,38576.0,0.05471098]
[1643695053718,0.14360881,38577.0,38576.0,0.05471098]
[1643695054718,0.04360881,38577.0,38576.0,0.05471098]
[1643695055016,0.14360881,38577.0,38576.0,0.05471098]
[1643695056018,0.04360881,38577.0,38576.0,0.05471098]
[1643695056221,0.14360881,38577.0,38576.0,0.05471098]
[1643695057017,0.14360881,38577.0,38576.0,0.04971098]
[1643695059769,0.44360881,38577.0,38576.0,0.04471098]
[1643695060671,0.14360881,38577.0,38576.0,0.04471098]
[1643695067570,0.39360881,38577.0,38576.0,0.04471098]
[1643695068172,0.14360881,38577.0,38576.0,0.04471098]
[1643695069221,0.65,38576.0,38573.0,0.08]
[1643695069424,0.064846,38575.0,38573.0,0.08]
[1643695069623,0.164846,38575.0,38573.0,0.08]
[1643695070627,0.216746,38575.0,38573.0,0.08]
[1643695071926,0.54457097,38575.0,38573.0,0.08]
[1643695072166,0.216746,38575.0,38573.0,0.08]
[1643695072368,0.54457097,38575.0,38573.0,0.08]
[1643695072567,0.216746,38575.0,38573.0,0.08]
[1643695072868,0.54457097,38575.0,38573.0,0.08]
[1643695073167,0.216746,38575.0,38573.0,0.08]
[1643695075771,0.164846,38575.0,38573.0,0.08]
[1643695078719,0.49267097,38575.0,38573.0,0.08]
[1643695078920,0.97236897,38574.0,38573.0,0.08]
[1643695079320,1.24724979,38574.0,38573.0,0.08]
[1643695079518,1.07236897,38574.0,38573.0,0.08]
[1643695079777,1.07236897,38574.0,38572.0,0.05158036]
[1643695079778,0.7,38573.0,38572.0,0.05158036]
[1643695079972,1.12782497,38573.0,38572.0,0.05158036]
[1643695080172,1.30270579,38573.0,38572.0,0.05158036]
[1643695080773,0.5176056,38571.0,38570.0,0.42]
[1643695080976,0.5695056,38571.0,38570.0,0.42]
[1643695081173,0.6695056,38571.0,38570.0,0.42]
[1643695083175,0.84440742,38571.0,38570.0,0.42]
[1643695083431,0.6695056,38571.0,38570.0,0.42]
[1643695083623,0.84440742,38571.0,38570.0,0.42]
[1643695083822,0.6695056,38571.0,38570.0,0.42]
[1643695085027,0.6695056,38571.0,38570.0,0.419369]
[1643695085425,1.24733057,38571.0,38570.0,0.419369]
[1643695085625,0.9195056,38571.0,38570.0,0.419369]
[1643695085825,0.84440654,38571.0,38570.0,0.419369]
[1643695086424,0.6695056,38571.0,38570.0,0.419369]
[1643695087027,0.84440654,38571.0,38570.0,0.419369]
[1643695087272,0.9195056,38571.0,38570.0,0.419369]
[1643695087472,1.09441157,38571.0,38570.0,0.419369]
[1643695087873,0.84441157,38571.0,38570.0,0.419369]
[1643695088275,0.84441157,38571.0,38569.0,0.00157258]
[1643695088276,0.96867531,38570.0,38569.0,0.00157258]
[1643695088477,1.06867531,38570.0,38569.0,0.00157258]
[1643695088875,0.36867531,38570.0,38569.0,0.00157258]
[1643695089076,0.36867531,38570.0,38568.0,0.01537554]
[1643695089277,0.36867531,38570.0,38568.0,0.01694816]
[1643695090280,0.36867531,38570.0,38568.0,0.01537554]
[1643695094522,0.36867531,38570.0,38567.0,0.08061333]
[1643695094777,0.064858,38569.0,38567.0,0.08061333]
[1643695095177,0.064858,38569.0,38567.0,0.08]
[1643695095787,1.14368007,38565.0,38564.0,0.10177926]
[1643695095985,0.9519,38565.0,38564.0,0.10177926]
[1643695096181,1.22683274,38565.0,38563.0,0.0031]
[1643695096381,1.0,38564.0,38563.0,0.0031]
[1643695096581,1.0519,38564.0,38563.0,0.0031]
[1643695096880,1.53964575,38564.0,38563.0,0.0031]
[1643695097079,1.364706,38564.0,38563.0,0.0031]
[1643695097281,1.53964575,38564.0,38563.0,0.0031]
[1643695097884,1.364706,38564.0,38563.0,0.0031]
[1643695098526,0.464706,38564.0,38563.0,0.0031]
[1643695098728,0.75140317,38564.0,38563.0,0.0031]
[1643695100329,0.69950317,38564.0,38563.0,0.0031]
[1643695102027,0.75140317,38564.0,38563.0,0.0031]
[1643695103087,0.92635602,38564.0,38563.0,0.0031]
[1643695104492,0.92585602,38564.0,38563.0,0.0031]
[1643695105193,1.22585602,38564.0,38563.0,0.0031]
[1643695106026,1.05090317,38564.0,38563.0,0.0031]
[1643695106824,0.764206,38564.0,38563.0,0.0031]
[1643695107225,1.014206,38564.0,38563.0,0.0031]
[1643695107627,0.764206,38564.0,38563.0,0.0031]
[1643695108228,1.114206,38564.0,38563.0,0.0031]
[1643695113079,2.737206,38564.0,38563.0,0.0031]
[1643695113280,0.9,38563.0,38562.0,0.0011]
[1643695113538,2.3249,38563.0,38562.0,0.00188391]
[1643695113736,2.59987045,38563.0,38562.0,0.00188391]
[1643695113936,0.914883,38562.0,38560.0,0.0042]
[1643695114135,0.7019,38561.0,38560.0,0.0042]
[1643695114333,0.8019,38561.0,38560.0,0.0042]
[1643695115036,2.1749,38561.0,38560.0,0.0042]
[1643695115235,2.17178088,38561.0,38560.0,0.0042]
[1643695115839,0.8,38560.0,38554.0,0.40370001]
[1643695116040,1.489783,38559.0,38554.0,0.40370001]
[1643695116236,0.51307276,38558.0,38554.0,0.40370001]
[1643695116436,0.0519,38557.0,38554.0,0.40370001]
[1643695117039,0.29308374,38555.0,38552.0,0.0031]
[1643695117275,0.29308374,38555.0,38554.0,0.0006963]
[1643695117276,0.34498374,38555.0,38554.0,0.0006963]
[1643695117674,0.44498374,38555.0,38554.0,0.0006963]
[1643695118076,0.44498374,38555.0,38553.0,0.0042]
[1643695118275,0.4,38554.0,38553.0,0.00559067]
[1643695118475,0.1,38554.0,38553.0,0.00559067]
[1643695119374,0.1,38554.0,38553.0,0.0042]
[1643695121023,0.1,38554.0,38553.0,0.014594]
[1643695121426,0.1,38554.0,38553.0,0.0042]
[1643695122028,0.55,38554.0,38553.0,0.0042]
[1643695122227,0.1,38554.0,38553.0,0.0042]
[1643695124772,0.1,38554.0,38553.0,0.014594]
[1643695124971,0.35,38554.0,38553.0,0.014594]
[1643695125172,0.35,38554.0,38553.0,0.0042]
[1643695126173,0.25,38554.0,38553.0,0.0042]
[1643695126378,0.35,38554.0,38553.0,0.0042]
[1643695126574,0.4019,38554.0,38553.0,0.0042]
[1643695127176,0.1519,38554.0,38553.0,0.0042]
[1643695128824,0.4519,38554.0,38553.0,0.014595]
[1643695129027,0.4519,38554.0,38553.0,0.0042]
[1643695129724,0.3519,38554.0,38553.0,0.0042]
[1643695129924,0.4519,38554.0,38553.0,0.0042]
[1643695130927,0.8019,38554.0,38553.0,0.0042]
[1643695131128,0.97688268,38554.0,38553.0,0.0042]
[1643695131329,0.97688268,38554.0,38552.0,0.00466321]
[1643695131330,0.9,38553.0,38552.0,0.00356321]
[1643695131533,1.30471431,38553.0,38552.0,0.002]
[1643695131727,0.216799,38553.0,38552.0,0.002]
[1643695131927,0.616799,38553.0,38552.0,0.002]
[1643695132171,0.616799,38553.0,38552.0,0.00356321]
[1643695132974,0.45,38552.0,38551.0,0.00156325]
[1643695133174,1.42380369,38552.0,38551.0,0.00156325]
[1643695133375,1.52380369,38552.0,38551.0,0.01195825]
[1643695133574,1.52380369,38552.0,38551.0,0.00156325]
[1643695133775,2.89680369,38552.0,38548.0,0.0044]
[1643695133974,0.38983133,38551.0,38550.0,0.00231155]
[1643695134177,0.44173133,38551.0,38550.0,0.00231155]
[1643695134974,0.44173133,38551.0,38550.0,0.0011]
[1643695136026,0.3,38549.0,38548.0,0.0044]
[1643695136226,0.30129163,38549.0,38548.0,0.0044]
[1643695136929,0.40129163,38549.0,38548.0,0.0044]
[1643695137125,0.40129163,38549.0,38548.0,0.014796]
[1643695137526,0.40129163,38549.0,38548.0,0.0044]
[1643695140279,0.1519,38549.0,38548.0,0.0044]
[1643695140474,1.85272497,38549.0,38548.0,0.0044]
[1643695140675,1.85272497,38549.0,38547.0,0.00375736]
[1643695140676,0.9,38548.0,38547.0,0.00375736]
[1643695140878,0.9,38548.0,38543.0,0.4211]
[1643695140879,0.9,38546.0,38543.0,0.4211]
[1643695141096,0.0519,38545.0,38543.0,0.0011]
[1643695141276,0.55,38544.0,38543.0,0.0011]
[1643695141476,0.37972497,38544.0,38543.0,0.0011]
[1643695141676,0.17500029,38545.0,38543.0,0.0011]
[1643695141876,0.064912,38545.0,38543.0,0.0011]
[1643695142080,0.129824,38545.0,38543.0,0.0011]
[1643695142575,0.20639245,38545.0,38543.0,0.0011]
[1643695142776,0.60229811,38545.0,38543.0,0.0011]
[1643695145824,0.064912,38545.0,38543.0,0.0011]
[1643695147177,0.129809,38545.0,38543.0,0.0011]
[1643695148576,0.09063668,38544.0,38543.0,0.0011]
[1643695156295,0.064912,38545.0,38543.0,0.0011]
[1643695157679,0.16825006,38545.0,38543.0,0.0011]
[1643695159027,0.23314706,38545.0,38543.0,0.0011]
[1643695160027,0.16825006,38545.0,38543.0,0.0011]
[1643695161425,0.064912,38545.0,38543.0,0.0011]
[1643695163277,0.08367277,38544.0,38543.0,0.0011]
[1643695163878,0.4,38543.0,38541.0,0.00812114]
[1643695164079,0.064904,38542.0,38541.0,0.00812114]
[1643695164580,1.66930207,38542.0,38541.0,0.00812114]
[1643695164879,1.94430236,38542.0,38541.0,0.00812114]
[1643695165077,1.04430236,38542.0,38541.0,0.00812114]
[1643695165478,0.86930207,38542.0,38541.0,0.00812114]
[1643695165678,1.04430236,38542.0,38541.0,0.00812114]
[1643695165943,0.86930207,38542.0,38541.0,0.00812114]
[1643695166136,1.32030763,38542.0,38541.0,0.00812114]
[1643695166336,1.14530734,38542.0,38541.0,0.00812114]
[1643695166536,1.32030763,38542.0,38541.0,0.00812114]
[1643695173726,0.9,38540.0,38512.0,3.19480415]
[1643695173933,0.9,38540.0,38504.0,0.01204399]
[1643695173934,0.054,38505.0,38504.0,0.01204399]
[1643695174129,0.054,38505.0,38483.0,0.3913]
[1643695174130,0.9,38504.0,38483.0,0.3913]
[1643695174331,0.5376,38492.0,38482.0,0.05]
[1643695174541,0.5895,38492.0,38491.0,0.87929]
[1643695174834,0.5895,38492.0,38491.0,0.389439]
[1643695175033,0.784457,38492.0,38491.0,0.299439]
[1643695175227,0.884457,38492.0,38491.0,0.299439]
[1643695175428,1.13600242,38492.0,38481.0,0.01]
[1643695175632,0.5376,38485.0,38481.0,0.01]
[1643695175833,0.7884,38485.0,38481.0,0.01]
[1643695176132,0.5895,38485.0,38477.0,0.09620811]
[1643695176433,0.0519,38486.0,38484.0,0.0022]
[1643695176632,0.0519,38492.0,38485.0,0.87952]
[1643695176828,1.632956,38496.0,38491.0,0.0022]
[1643695176829,0.1752442,38496.0,38491.0,0.0022]
[1643695177195,0.062981,38498.0,38495.0,0.0022]
[1643695177389,0.062981,38498.0,38497.0,0.0022]
[1643695178587,0.061881,38498.0,38497.0,0.0022]
[1643695179391,0.411881,38498.0,38497.0,0.0022]
[1643695179589,0.48874405,38498.0,38497.0,0.0022]
[1643695180390,0.58874405,38498.0,38497.0,0.0022]
[1643695181029,0.23874405,38498.0,38497.0,0.0022]
[1643695181629,0.4150288,38498.0,38497.0,0.0022]
[1643695181828,1.51954441,38498.0,38497.0,0.0022]
[1643695182028,1.24325966,38498.0,38497.0,0.0022]
[1643695182229,0.064979,38490.0,38489.0,0.23411424]
[1643695182430,0.38979461,38490.0,38482.0,0.1]
[1643695182631,0.38979461,38490.0,38485.0,0.82952]
[1643695182830,0.38979461,38490.0,38485.0,0.77952]
[1643695183229,0.38979461,38490.0,38485.0,1.09164213]
[1643695184030,0.38979461,38490.0,38485.0,0.93100472]
[1643695184879,0.38979461,38490.0,38485.0,0.98100472]
[1643695185081,0.38979461,38490.0,38485.0,0.66888259]
[1643695185284,0.1,38489.0,38485.0,0.61888259]
[1643695185484,0.1,38489.0,38475.0,0.03811038]
[1643695185485,0.11139683,38484.0,38475.0,0.03811038]
[1643695185683,0.46735832,38488.0,38473.0,0.9134]
[1643695185684,0.064998,38482.0,38474.0,0.04328378]
[1643695186087,0.064998,38482.0,38476.0,0.29667619]
[1643695186384,0.08555098,38481.0,38476.0,0.24764626]
[1643695186586,0.36679159,38481.0,38476.0,0.0083659]
[1643695187183,0.08555098,38481.0,38476.0,0.0083659]
[1643695187782,0.08555098,38481.0,38476.0,0.02663854]
[1643695187984,0.08555098,38481.0,38478.0,0.30771795]
[1643695188183,0.064998,38482.0,38479.0,0.05]
[1643695188438,0.064998,38482.0,38478.0,0.30771795]
[1643695189634,0.064998,38482.0,38479.0,0.00119484]
[1643695190236,0.064998,38482.0,38478.0,0.19871063]
[1643695190936,0.1,38484.0,38478.0,0.19871063]
[1643695191141,0.34306621,38486.0,38478.0,0.19871063]
[1643695191336,0.1,38485.0,38478.0,0.19871063]
[1643695192382,0.37479876,38485.0,38478.0,0.19871063]
[1643695192582,0.15376658,38486.0,38478.0,0.19871063]
[1643695192784,0.15376658,38486.0,38479.0,0.08]
[1643695193183,0.06499,38486.0,38479.0,0.08]
[1643695193384,0.27557055,38485.0,38479.0,0.08]
[1643695193586,0.55012412,38485.0,38479.0,0.08]
[1643695193789,0.37455357,38485.0,38479.0,0.08]
[1643695194187,0.65456093,38485.0,38479.0,0.08]
[1643695196129,0.37455357,38485.0,38479.0,0.08]
[1643695196533,0.27455357,38485.0,38481.0,0.08]
[1643695196731,0.27455357,38485.0,38484.0,0.58]
[1643695196930,0.00162174,38491.0,38484.0,0.91890627]
[1643695197129,0.00162174,38491.0,38488.0,0.08]
[1643695198531,0.00130622,38491.0,38488.0,0.08]
[1643695199330,0.064977,38493.0,38488.0,0.08]
[1643695199530,0.00130622,38491.0,38488.0,0.08]
[1643695200583,0.965003,38489.0,38488.0,0.08]
[1643695200784,0.130011,38486.0,38473.0,0.27906059]
[1643695200986,0.09812356,38478.0,38477.0,0.00116258]
[1643695201182,2.66608371,38488.0,38477.0,0.00116258]
[1643695201183,1.89609471,38488.0,38477.0,0.00116258]
[1643695201486,0.1,38486.0,38477.0,0.00116258]
[1643695201682,1.89609471,38488.0,38477.0,0.00116258]
[1643695201882,0.065007,38478.0,38477.0,0.00116258]
[1643695202281,0.13001,38481.0,38477.0,0.00116258]
[1643695202481,0.13001,38481.0,38476.0,0.42960066]
[1643695202681,0.12981,38481.0,38476.0,0.42960066]
[1643695203283,0.12981,38481.0,38477.0,0.00123473]
[1643695203943,0.00052126,38479.0,38477.0,0.00123473]
[1643695204143,0.4068491,38481.0,38477.0,0.00123473]
[1643695204341,0.1,38480.0,38476.0,0.4283659]
[1643695204741,0.1,38480.0,38476.0,0.42960065]
[1643695205342,0.164999,38482.0,38476.0,0.42960065]
[1643695205545,0.00052126,38478.0,38476.0,0.4283659]
[1643695205744,0.1,38481.0,38476.0,0.42958478]
[1643695206143,0.065002,38478.0,38476.0,0.42958478]
[1643695206942,0.00052126,38477.0,38476.0,0.4283659]
[1643695207878,0.00052126,38477.0,38476.0,0.42]
[1643695208080,0.00052126,38477.0,38476.0,0.3893969]
[1643695209283,0.07756671,38477.0,38476.0,0.3893969]
[1643695209479,0.15461216,38477.0,38476.0,0.3843969]
[1643695210080,0.15461216,38477.0,38476.0,0.3793969]
[1643695210481,0.15461216,38477.0,38476.0,0.3743969]
[1643695213330,0.15461216,38477.0,38476.0,0.36707604]
[1643695215880,0.15461216,38477.0,38472.0,0.001]
[1643695215881,0.53900203,38477.0,38472.0,0.001]
[1643695216082,0.53900203,38477.0,38471.0,0.006]
[1643695216083,0.5,38476.0,38471.0,0.006]
[1643695216280,0.45509728,38475.0,38471.0,0.006]
[1643695216480,0.15461216,38474.0,38471.0,0.006]
[1643695216679,0.2540909,38474.0,38471.0,0.006]
[1643695216890,0.08684616,38473.0,38471.0,0.006]
[1643695217484,0.27651061,38472.0,38471.0,0.006]
[1643695217681,0.18684616,38473.0,38471.0,0.006]
[1643695217883,0.40052126,38472.0,38471.0,0.006]
[1643695218083,0.00052126,38472.0,38471.0,0.006]
[1643695221245,0.00052126,38472.0,38471.0,0.25043069]
[1643695221544,0.00052126,38472.0,38471.0,0.006]
[1643695221943,0.15461216,38472.0,38471.0,0.006]
[1643695228442,0.43118071,38472.0,38471.0,0.006]
[1643695228643,0.15461216,38472.0,38471.0,0.006]
[1643695228842,0.25461216,38472.0,38471.0,0.006]
[1643695229879,0.15461216,38472.0,38471.0,0.006]
[1643695230080,0.25461216,38472.0,38471.0,0.006]
[1643695230680,0.15461216,38472.0,38471.0,0.006]
[1643695230880,0.25461216,38472.0,38471.0,0.006]
[1643695231080,0.15461216,38472.0,38471.0,0.006]
[1643695231282,0.15461216,38472.0,38465.0,0.0001]
[1643695231283,0.9,38471.0,38465.0,0.0001]
[1643695231593,0.9,38471.0,38466.0,0.02017523]
[1643695231594,0.33386898,38470.0,38466.0,0.02017523]
[1643695231782,0.0519,38470.0,38466.0,0.02017523]
[1643695231982,0.1540909,38468.0,38466.0,0.02017523]
[1643695232183,0.1540909,38468.0,38466.0,0.01017523]
[1643695232582,0.0519,38467.0,38466.0,0.01017523]
[1643695233184,0.05242126,38467.0,38466.0,0.01017523]
[1643695233938,0.05242126,38467.0,38465.0,0.00130791]
[1643695234237,0.1540909,38468.0,38465.0,0.00130791]
[1643695234835,0.00052126,38466.0,38465.0,0.00251584]
[1643695235440,0.00052126,38466.0,38465.0,0.00130793]
[1643695235837,0.00052126,38466.0,38465.0,0.0001]
[1643695237039,0.00037651,38466.0,38465.0,0.0001]
[1643695237285,0.1540909,38466.0,38465.0,0.0001]
[1643695237485,0.15446741,38466.0,38465.0,0.0001]
[1643695238585,0.15446741,38466.0,38461.0,0.25827567]
[1643695238787,0.15446741,38466.0,38462.0,0.77617176]
[1643695238986,0.00037651,38464.0,38462.0,0.77617176]
[1643695239188,0.1540909,38466.0,38462.0,0.77617176]
[1643695240385,2.00851875,38464.0,38462.0,0.77617176]
[1643695240691,0.11655697,38466.0,38462.0,0.77617176]
[1643695241337,0.18158097,38466.0,38462.0,0.80216942]
[1643695241536,0.18158097,38466.0,38462.0,0.79716942]
[1643695242138,0.00037651,38464.0,38462.0,0.79716942]
[1643695242338,0.065024,38466.0,38462.0,0.79716942]
[1643695242539,0.11655697,38464.0,38462.0,0.79716942]
[1643695242747,0.0215482,38475.0,38464.0,0.7]
[1643695242944,0.0215482,38475.0,38465.0,0.33448532]
[1643695243141,0.0215482,38475.0,38470.0,0.05140944]
[1643695243541,0.00037651,38472.0,38470.0,0.14444756]
[1643695243740,0.00037651,38472.0,38471.0,0.7886]
[1643695244346,0.90037651,38472.0,38471.0,0.05795715]
[1643695244541,0.30037651,38472.0,38471.0,0.05795715]
[1643695244787,0.15227651,38472.0,38471.0,0.05795715]
[1643695245388,0.28231351,38472.0,38471.0,0.05795715]
[1643695247101,0.55833686,38472.0,38471.0,0.05795715]
[1643695247290,0.28231351,38472.0,38471.0,0.05795715]
[1643695249341,0.36818103,38472.0,38471.0,0.05795715]
[1643695249539,0.71818103,38472.0,38471.0,0.05795715]
[1643695249738,2.09118103,38472.0,38471.0,0.05795715]
[1643695249939,1.74118103,38472.0,38471.0,0.05795715]
[1643695250738,0.36818103,38472.0,38471.0,0.05795715]
[1643695251939,0.63995794,38472.0,38471.0,0.05795715]
[1643695252585,2.3396033,38472.0,38471.0,0.05795715]
[1643695252783,0.69482639,38472.0,38471.0,0.05795715]
[1643695254384,2.06782639,38472.0,38471.0,0.05795715]
[1643695254584,2.24319028,38472.0,38471.0,0.05795715]
[1643695255087,2.23964492,38472.0,38471.0,0.05795715]
[1643695255288,0.9,38471.0,38470.0,0.05140944]
[1643695255488,1.70158309,38471.0,38470.0,0.05140944]
[1643695255687,1.87732349,38471.0,38470.0,0.05140944]
[1643695255950,2.9237404,38471.0,38470.0,0.05140944]
[1643695256147,3.3083617,38471.0,38470.0,0.05140944]
[1643695256746,3.3083617,38471.0,38470.0,0.06182344]
[1643695257046,2.4083617,38471.0,38470.0,0.06182344]
[1643695257247,2.4083617,38471.0,38470.0,0.05140944]
[1643695257648,2.0237404,38471.0,38470.0,0.05140944]
[1643695257851,2.02723562,38471.0,38470.0,0.05140944]
[1643695258048,1.7006404,38471.0,38470.0,0.05140944]
[1643695258347,1.52527651,38471.0,38470.0,0.05140944]
[1643695259248,1.70064004,38471.0,38470.0,0.05140944]
[1643695259449,2.02723526,38471.0,38470.0,0.05140944]
[1643695259682,1.70064004,38471.0,38470.0,0.05140944]
[1643695260482,1.64874004,38471.0,38470.0,0.05140944]
[1643695260682,1.64874004,38471.0,38470.0,0.05182244]
[1643695260882,1.64874004,38471.0,38470.0,0.04140944]
[1643695262784,1.64874004,38471.0,38470.0,0.12140944]
[1643695262986,2.02723526,38471.0,38470.0,0.12140944]
[1643695263184,2.0272567,38471.0,38470.0,0.12140944]
[1643695263441,2.02726609,38471.0,38470.0,0.12140944]
[1643695264541,0.1300496,38467.0,38462.0,0.02720366]
[1643695264841,0.0519,38466.0,38462.0,0.02599766]
[1643695265140,0.0519,38466.0,38462.0,0.02720366]
[1643695265740,0.32249287,38466.0,38462.0,0.02720366]
[1643695265942,0.08823556,38463.0,38462.0,0.02599766]
[1643695266140,0.08823556,38463.0,38462.0,0.02720366]
[1643695266540,0.08861207,38463.0,38462.0,0.02720366]
[1643695266941,0.00037651,38463.0,38462.0,0.02720366]
[1643695267183,0.00037651,38463.0,38462.0,0.02599766]
[1643695267383,0.10037651,38463.0,38462.0,0.02599766]
[1643695268485,0.00037651,38463.0,38462.0,0.02599766]
[1643695274445,0.00037651,38463.0,38462.0,0.30717076]
[1643695274688,0.00037651,38463.0,38462.0,1.08715076]
[1643695275086,0.00037651,38463.0,38462.0,0.80597766]
[1643695275685,0.00037651,38463.0,38462.0,1.08715076]
[1643695275886,0.00037651,38463.0,38462.0,0.80597766]
[1643695276687,0.00037651,38463.0,38462.0,1.08655589]
[1643695278088,0.00037651,38463.0,38462.0,0.80597766]
[1643695279150,0.00037651,38463.0,38462.0,0.80630138]
[1643695282057,0.00037651,38463.0,38462.0,0.85630138]
[1643695282296,0.00037651,38463.0,38462.0,1.20539938]
[1643695283792,0.00037651,38463.0,38462.0,1.15539938]
[1643695284194,7.651e-05,38463.0,38462.0,0.80597766]
[1643695284394,0.00154417,38473.0,38462.0,1.08219638]
[1643695284693,0.165006,38474.0,38469.0,0.22470257]
[1643695284898,0.065006,38474.0,38469.0,0.22470257]
[1643695285095,0.00146109,38473.0,38469.0,0.22470257]
[1643695285952,0.065006,38474.0,38469.0,0.22470257]
[1643695286143,0.00146129,38473.0,38469.0,0.22470257]
[1643695287143,0.065006,38474.0,38469.0,0.22470257]
[1643695287343,0.065006,38474.0,38468.0,0.01041]
[1643695287344,0.00131783,38473.0,38468.0,0.01041]
[1643695287549,0.00131783,38473.0,38463.0,0.29725259]
[1643695288245,0.130014,38474.0,38465.0,0.28677002]
[1643695288444,0.130014,38474.0,38465.0,0.24329202]
[1643695288645,0.00131777,38473.0,38465.0,0.32882057]
[1643695289345,0.00131777,38473.0,38466.0,0.25717013]
[1643695289545,0.065006,38474.0,38466.0,0.25717013]
[1643695289785,0.065006,38474.0,38466.0,0.50314106]
[1643695289984,0.00133648,38473.0,38471.0,0.08570515]
[1643695290384,0.00133648,38473.0,38466.0,0.50314106]
[1643695290584,0.065006,38474.0,38466.0,0.25717013]
[1643695291087,0.06635858,38474.0,38466.0,0.25717013]
[1643695291384,0.02987955,38474.0,38466.0,0.25717013]
[1643695291784,0.02987955,38474.0,38466.0,0.34573913]
[1643695291983,0.02852697,38474.0,38466.0,0.34573913]
[1643695292186,0.00135256,38473.0,38466.0,0.34573913]
[1643695292689,0.00135256,38473.0,38466.0,0.57364466]
[1643695293286,0.00135256,38473.0,38472.0,0.07856871]
[1643695293541,0.064999,38477.0,38472.0,0.33971077]
[1643695293740,0.00134834,38473.0,38472.0,0.07849826]
[1643695294142,0.00134834,38473.0,38472.0,0.39200133]
[1643695294339,0.00134834,38473.0,38472.0,0.69025359]
[1643695294938,0.00134841,38474.0,38472.0,0.69025359]
[1643695295738,0.12999192,38480.0,38472.0,0.69025359]
[1643695295940,0.12999192,38480.0,38478.0,0.27438547]
[1643695296139,0.4,38479.0,38476.0,0.30968898]
[1643695296338,0.12999192,38480.0,38476.0,0.30968898]
[1643695298186,0.13146878,38480.0,38476.0,0.30968898]
[1643695298387,0.13146878,38480.0,38472.0,0.37675052]
[1643695298588,0.064998,38478.0,38475.0,0.010409]
[1643695298988,0.064998,38478.0,38472.0,0.37675052]
[1643695298989,0.06499658,38477.0,38472.0,0.37675052]
[1643695299588,0.06499658,38477.0,38473.0,0.25204709]
[1643695300789,0.06647328,38477.0,38473.0,0.25204709]
[1643695301642,0.06499658,38477.0,38473.0,0.25204709]
[1643695301843,0.06647328,38477.0,38473.0,0.25204709]
[1643695304142,0.06499658,38477.0,38473.0,0.25204709]
[1643695306785,0.0664739,38477.0,38473.0,0.25204709]
[1643695307702,0.06499658,38477.0,38473.0,0.25204709]
[1643695308086,0.06654164,38477.0,38473.0,0.25204709]
[1643695311440,0.06499658,38477.0,38473.0,0.25204709]
[1643695311639,0.06631389,38477.0,38473.0,0.25204709]
[1643695312190,0.06131389,38477.0,38473.0,0.25204709]
[1643695312390,0.02823591,38477.0,38473.0,0.25204709]
[1643695313595,0.02823591,38477.0,38470.0,0.07672063]
[1643695313794,0.02823591,38477.0,38470.0,0.05]
[1643695313993,0.02823591,38477.0,38467.0,0.6055902]
[1643695313994,0.02823591,38477.0,38469.0,0.010411]
[1643695314594,0.30151884,38477.0,38469.0,0.010411]
[1643695314798,0.07732228,38474.0,38469.0,0.010411]
[1643695314998,0.0519,38473.0,38469.0,0.010411]
[1643695315195,0.11691348,38473.0,38469.0,0.010411]
[1643695316440,0.18192648,38473.0,38469.0,0.010411]
[1643695316939,0.28181137,38472.0,38469.0,0.010411]
[1643695317141,0.0519,38471.0,38469.0,0.010411]
[1643695317340,0.25530873,38470.0,38469.0,0.010411]
[1643695317540,0.30720873,38470.0,38469.0,0.010411]
[1643695317942,0.0519,38470.0,38469.0,0.010411]
[1643695319339,0.0519,38470.0,38468.0,0.08005299]
[1643695320090,0.0519,38470.0,38465.0,0.5868661]
[1643695320293,0.06513277,38470.0,38462.0,0.80839872]
[1643695320498,0.06513277,38470.0,38462.0,0.80718129]
[1643695320499,0.00012526,38470.0,38462.0,0.80718129]
[1643695321097,0.00012526,38470.0,38462.0,0.80838492]
[1643695321292,0.065013,38469.0,38463.0,0.2355352]
[1643695321492,0.116913,38469.0,38464.0,0.77995]
[1643695322294,0.06501463,38468.0,38464.0,0.77995]
[1643695322495,0.0244591,38468.0,38464.0,0.77995]
[1643695322696,0.130038,38467.0,38464.0,0.77995]
[1643695322897,0.181938,38467.0,38464.0,0.77995]
[1643695324342,0.05097242,38467.0,38464.0,0.77995]
[1643695325240,0.11599142,38467.0,38464.0,0.77995]
[1643695325440,0.18101042,38467.0,38464.0,0.77995]
[1643695326443,0.14715162,38467.0,38464.0,0.77995]
[1643695327041,0.24715162,38467.0,38464.0,0.76995]
[1643695327286,0.2189802,38467.0,38464.0,0.76995]
[1643695327687,0.1189802,38467.0,38464.0,0.76995]
[1643695328689,0.1189802,38467.0,38465.0,0.09072032]
[1643695330291,0.06800778,38467.0,38464.0,0.76995]
[1643695330946,0.06800778,38467.0,38464.0,0.62154997]
[1643695332644,0.11800778,38467.0,38464.0,0.62154997]
[1643695332845,0.16800778,38467.0,38464.0,0.62154997]
[1643695333047,0.06800778,38467.0,38464.0,0.62154997]
[1643695336499,0.06800778,38467.0,38464.0,0.87412805]
[1643695338738,0.06800778,38467.0,38464.0,0.86912805]
[1643695345590,0.065019,38467.0,38464.0,0.86912805]
[1643695346843,0.065019,38467.0,38466.0,0.23756904]
[1643695347247,0.065019,38467.0,38466.0,0.33345869]
[1643695347443,0.065019,38467.0,38466.0,0.09588965]
[1643695348145,0.065019,38467.0,38464.0,0.86912805]
[1643695348444,0.065019,38467.0,38464.0,1.09165385]
[1643695348644,0.065019,38467.0,38464.0,1.42852994]
[1643695349245,0.065019,38467.0,38465.0,0.075098]
[1643695352509,0.065019,38467.0,38466.0,0.25087646]
[1643695352703,0.065012,38469.0,38466.0,0.25087646]
[1643695352900,0.06500884,38469.0,38466.0,0.25087646]
[1643695353548,0.00146349,38473.0,38466.0,0.30087646]
[1643695353746,0.00146349,38473.0,38472.0,0.2809335]
[1643695353947,0.00146349,38473.0,38471.0,0.29766283]
[1643695354547,0.06647049,38473.0,38471.0,0.29766283]
[1643695355252,0.19648807,38473.0,38471.0,0.29766283]
[1643695355850,0.19502458,38473.0,38471.0,0.29766283]
[1643695360096,0.065013,38472.0,38466.0,0.1484]
[1643695360296,0.065013,38471.0,38470.0,0.010412]
[1643695360501,0.195039,38472.0,38466.0,0.05]
[1643695360697,0.195039,38472.0,38464.0,0.64704997]
[1643695360956,0.195039,38472.0,38464.0,0.59704997]
[1643695361152,0.195039,38472.0,38467.0,0.27086932]